{"text_format":"3","workbook":"xlsx","n_sheets":1,"sheets":["Протокол ШЭ ВОШ по предмету"],"not_rendered":{"defined_names":1},"read":"whole","date_system":"1900"}

{"sheet":"Протокол ШЭ ВОШ по предмету","index":0,"n_rows":14,"n_cols":15,"rows_kept":14}
["№","Фамилия","Имя","Отчество","Дата рождения","Пол","Участник с ОВЗ (да/нет)","Класс обучения","Класс участия","Балл","Максимальный балл","Статус","Призёр муниципального этапа прошлого года","ФИО учителя","Место работы учителя"]
[1,"Ахметвалиева"," Румия"," Рамилевна","        31.07.2012","ж","нет",4,4,28,30,"победитель","нет"," Фахрутдинова Лилия Махмутовна","Муниципальное бюджетное общеобразовательное учреждение \"Биклянская СОШ\"Тукаевского района Республики Татарстан"]
[2,"Фахрутдинова ","Ралина ","Раилевна","2012-05-23","         ж","        нет",4,4,28,30,"      победитель","                 нет"," Фахрутдинова Лилия Махмутовна","Муниципальное бюджетное общеобразовательное учреждение \"Биклянская СОШ\"Тукаевского района Республики Татарстан"]
[3,"Мингалимова  ","Инзиля","Ильсуровна","2012-11-15","         ж","        нет",4,4,23,30,"      участник","                 нет"," Фахрутдинова Лилия Махмутовна","Муниципальное бюджетное общеобразовательное учреждение \"Биклянская СОШ\"Тукаевского района Республики Татарстан"]
[4,"Сафина ","Ралина ","Марселевна","2012-10-10","         ж","        нет",4,4,18,30,"      участник","                 нет"," Фахрутдинова Лилия Махмутовна","Муниципальное бюджетное общеобразовательное учреждение \"Биклянская СОШ\"Тукаевского района Республики Татарстан"]
[5,"Зиятдинова","Камиля","Равилевна","2011-03-10","ж","нет",5,5,10,38,{"$f":"$L$5","v":"      участник"},"нет","Якупова Лилия Халимовна",{"$f":"$O$5","v":"Муниципальное бюджетное общеобразовательное учреждение \"Биклянская СОШ\"Тукаевского района Республики Татарстан"}]
[6,"Зарипова ","Ильзира","Расимовна","2011-06-11","ж","нет",5,5,27,38,{"$f":"$L$2","v":"победитель"},"нет",{"$f":"$N$6","v":"Якупова Лилия Халимовна"},"Муниципальное бюджетное общеобразовательное учреждение \"Биклянская СОШ\"Тукаевского района Республики Татарстан"]
[7,"Шарафутдинова ","Камиля","Дамировна","2011-07-06","ж","нет",5,5,9,38,{"$f":"$L$5","v":"      участник"},"нет","Якупова Лилия Халимовна","Муниципальное бюджетное общеобразовательное учреждение \"Биклянская СОШ\"Тукаевского района Республики Татарстан"]
[8,"Костина ","Алина","Сергеевна","2006-06-30","ж","нет",9,9,14,50,{"$f":"$L$8","v":"      участник"},"нет","Якупова Лилия Халимовна","Муниципальное бюджетное общеобразовательное учреждение \"Биклянская СОШ\"Тукаевского района Республики Татарстан"]
[9,"Фардиева ","Сария","Шамилевна","2007-06-04","ж","нет",9,9,23,50,"участник ","нет","Якупова Лилия Халимовна","Муниципальное бюджетное общеобразовательное учреждение \"Биклянская СОШ\"Тукаевского района Республики Татарстан"]
[10,"Шиябиева ","Рамиля","Рафисовна","2007-04-04","ж","нет",9,9,27,50,{"$f":"$L$7","v":"победитель"},"нет","Якупова Лилия Халимовна","Муниципальное бюджетное общеобразовательное учреждение \"Биклянская СОШ\"Тукаевского района Республики Татарстан"]
[11,"Якупова ","Айсина","Айратовна","2007-09-07","ж","да",9,9,27,50,{"$f":"$L$7","v":"победитель"},"да","Якупова Лилия Халимовна","Муниципальное бюджетное общеобразовательное учреждение \"Биклянская СОШ\"Тукаевского района Республики Татарстан"]
[12,"Сабитов ","Эмиль","Ильнарович","2005-07-18","м","нет",11,11,24,50,"участник ","да","Якупова Лилия Халимовна","Муниципальное бюджетное общеобразовательное учреждение \"Биклянская СОШ\"Тукаевского района Республики Татарстан"]
[13,"Сарваров ","Нияз","Ришатович ","2005-04-24","м","нет",11,11,9,50,"участник ","нет","Якупова Лилия Халимовна","Муниципальное бюджетное общеобразовательное учреждение \"Биклянская СОШ\"Тукаевского района Республики Татарстан"]